bitfinex-derivatives/quotes_SOLF0:USTF0_20250818
["timestamp","ask_amount","ask_price","bid_price","bid_amount"]
[1755483422786,3.06,185.57,185.52,8.4868]
[1755483423179,5.3853,185.57,185.52,8.4868]
[1755483423480,3.06,185.56,185.51,8.487]
[1755483423979,3.06,185.55,185.44,3.1]
[1755483425283,3.06,185.54,185.42,3.1]
[1755483425577,5.3858,185.56,185.49,5.3874]
[1755483425778,3.06,185.59,185.41,3.1]
[1755483425983,3.06,185.57,185.41,3.1]
[1755483426172,3.06,185.57,185.44,5.3889]
[1755483426372,3.06,185.57,185.41,3.1]
[1755483426775,3.06,185.57,185.4,141.21651959]
[1755483426971,3.06,185.57,185.46,3.1]
[1755483427385,3.06,185.52,185.46,3.1]
[1755483428082,5.387,185.52,185.47,3.1]
[1755483428378,3.06,185.59,185.49,5.3875]
[1755483428582,3.06,185.59,185.48,3.1]
[1755483428978,3.06,185.59,185.49,5.3874]
[1755483429174,3.06,185.59,185.46,3.1]
[1755483429483,3.88119956,185.58,185.4,141.21651959]
[1755483429684,3.06,185.57,185.41,3.1]
[1755483429985,5.3865,185.53,185.48,5.3877]
[1755483430185,3.06,185.51,185.48,8.4877]
[1755483430386,3.06,185.51,185.4,141.21651959]
[1755483430581,9.28593782,185.59,185.41,3.1]
[1755483430582,5.3862,185.54,185.41,3.1]
[1755483430784,8.4462,185.54,185.41,3.1]
[1755483431281,3.06,185.53,185.41,3.1]
[1755483431785,3.06,185.53,185.5,5.3874]
[1755483431980,25.45593782,185.63,185.44,3.1]
[1755483431981,9.28593782,185.63,185.44,3.1]
[1755483432180,3.06,185.61,185.44,3.1]
[1755483432381,3.06,185.61,185.51,3.1]
[1755483433181,3.06,185.54,185.51,3.1]
[1755483433384,5.386,185.55,185.51,3.1]
[1755483433385,3.06,185.53,185.51,3.1]
[1755483433685,3.06,185.51,185.43,3.1]
[1755483434284,5.3883,185.47,185.43,3.1]
[1755483434489,3.06,185.46,185.43,3.1]
[1755483434888,3.06,185.48,185.45,3.1]
[1755483435083,3.06,185.47,185.45,3.1]
[1755483435587,3.06,185.47,185.46,3.1]
[1755483435791,5.3882,185.48,185.46,3.1]
[1755483435989,8.4482,185.48,185.46,3.1]
[1755483436283,3.06,185.48,185.46,3.1]
[1755483436489,3.06,185.5,185.47,3.1]
[1755483436786,3.06,185.49,185.47,3.1]
[1755483439291,16.17,185.58,185.4,141.21651959]
[1755483439292,2.86,185.58,185.41,2.94]
[1755483439594,2.86,185.52,185.47,5.388]
[1755483439889,2.86,185.51,185.41,2.94]
[1755483440191,2.86,185.51,185.46,5.3884]
[1755483440394,2.86,185.58,185.46,8.3284]
[1755483440586,2.86,185.56,185.46,8.3284]
[1755483440788,2.86,185.53,185.39,2.94]
[1755483440992,2.86,185.51,185.39,2.94]
[1755483441192,5.3897,185.43,185.39,2.94]
[1755483441494,2.86,185.41,185.39,2.94]
[1755483441989,2.86,185.4,185.37,2.94]
[1755483442193,2.86,185.4,185.33,2.94]
[1755483442492,8.2506,185.39,185.35,2.94]
[1755483442694,8.2506,185.39,185.37,2.94]
[1755483442893,2.86,185.39,185.37,2.94]
[1755483443098,19.03,185.5,185.33,2.94]
[1755483443315,2.86,185.48,185.33,2.94]
[1755483443488,2.86,185.4,185.35,5.3915]
[1755483443798,2.86,185.4,185.33,2.94]
[1755483445101,2.86,185.39,185.36,2.94]
[1755483445299,2.86,185.39,185.33,2.94]
[1755483447593,5.3908,185.39,185.34,5.3918]
[1755483447795,9.28593782,185.51,185.32,362.1]
[1755483447796,2.86,185.38,185.32,2.94]
[1755483448191,2.86,185.38,185.26,156.96]
[1755483448389,2.86,185.38,185.27,2.94]
[1755483448991,16.17,185.44,185.27,2.94]
[1755483449191,2.86,185.42,185.27,2.94]
[1755483449592,2.86,185.43,185.27,2.94]
[1755483449996,5.3905,185.4,185.34,5.3918]
[1755483450194,2.86,185.39,185.34,8.3318]
[1755483451199,8.2507,185.39,185.34,8.3318]
[1755483451393,5.3907,185.39,185.34,8.3318]
[1755483451791,2.86,185.36,185.34,8.3318]
[1755483451996,2.86,185.37,185.3,2.94]
[1755483452400,2.86,185.37,185.27,2.94]
[1755483452615,5.393,185.31,185.27,2.94]
[1755483452800,2.86,185.29,185.27,2.94]
[1755483453094,5.3927,185.32,185.27,8.3339]
[1755483453297,2.86,185.31,185.27,2.94]
[1755483453493,2.86,185.29,185.27,2.94]
[1755483453692,2.86,185.29,185.28,5.3938]
[1755483454196,9.28593782,185.42,185.29,5.3933]
[1755483454197,5.3921,185.34,185.29,5.3933]
[1755483454504,25.45593782,185.42,185.31,2.94]
[1755483454807,2.86,185.4,185.23,2.94]
[1755483455299,2.86,185.35,185.3,8.333]
[1755483455496,2.86,185.35,185.3,2.94]
[1755483455696,2.86,185.35,185.28,2.94]
[1755483455997,28.31593782,185.38,185.22,2.94]
[1755483456303,2.86,185.29,185.25,5.3946]
[1755483456489,2.86,185.28,185.25,8.3346]
[1755483456689,2.86,185.27,185.25,8.3346]
[1755483456890,2.86,185.27,185.25,5.3946]
[1755483457097,16.17,185.37,185.2,362.22]
[1755483457403,2.86,185.28,185.2,2.94]
[1755483458097,5.3947,185.25,185.2,2.94]
[1755483458295,2.86,185.23,185.21,2.94]
[1755483458692,16.17,185.33,185.16,156.76]
[1755483458895,16.17,185.38,185.16,156.76]
[1755483459096,316.0,185.46,185.25,2.94]
[1755483459097,2.86,185.36,185.25,2.94]
[1755483459306,5.3912,185.37,185.32,5.3926]
[1755483459607,9.28593782,185.46,185.24,9.28593782]
[1755483459608,2.86,185.35,185.33,2.94]
[1755483459799,2.86,185.35,185.33,8.3321]
[1755483459999,2.86,185.35,185.33,2.94]
[1755483460302,2.86,185.43,185.25,2.94]
[1755483460512,2.86,185.41,185.25,2.94]
[1755483461096,5.391,185.38,185.33,5.3921]
[1755483461404,2.86,185.36,185.33,8.3321]
[1755483461602,5.3903,185.41,185.35,5.3915]
[1755483461804,2.86,185.38,185.36,2.94]
[1755483462497,2.86,185.37,185.34,2.94]
[1755483463503,2.86,185.37,185.35,2.94]
[1755483464196,0.54,185.36,185.19,363.37939803]
[1755483464398,2.86,185.35,185.19,362.44]
[1755483464606,2.86,185.34,185.2,5.3961]
[1755483464902,2.86,185.32,185.2,5.3961]
[1755483465512,2.86,185.32,185.19,362.44]
[1755483465699,2.86,185.3,185.12,9.28593782]
[1755483465894,5.3955,185.23,185.13,156.54]
[1755483466096,8.2555,185.23,185.13,156.54]
[1755483466301,8.2555,185.23,185.14,2.48]
[1755483466998,5.3956,185.22,185.15,2.48]
[1755483467598,2.86,185.23,185.12,0.93966437]
[1755483467901,2.86,185.23,185.12,2.48]
[1755483468200,8.2555,185.23,185.12,2.48]
[1755483468397,3.0,185.27,185.12,2.48]
[1755483468800,8.3943,185.27,185.21,5.3957]
[1755483469001,3.0,185.27,185.2,2.49]
[1755483469801,3.0,185.37,185.2,2.49]
[1755483470107,5.3929,185.32,185.25,5.3944]
[1755483470304,3.0,185.31,185.14,2.49]
[1755483470603,3.0,185.31,185.13,15.25987006]
[1755483470604,3.0,185.26,185.19,2.49]
[1755483471107,5.3936,185.29,185.23,5.395]
[1755483471412,3.0,185.37,185.23,2.49]
[1755483471704,3.0,185.35,185.17,2.49]
[1755483471904,3.0,185.33,185.19,2.49]
[1755483472702,3.0,185.37,185.19,2.49]
[1755483473009,3.0,185.35,185.19,2.49]
[1755483473201,5.3946,185.26,185.19,2.49]
[1755483473401,3.0,185.33,185.19,2.49]
[1755483473810,3.0,185.33,185.16,156.4]
[1755483473811,3.0,185.31,185.1,2.49]
[1755483474198,3.0,185.29,185.1,2.49]
[1755483474403,3.0,185.27,185.17,5.3968]
[1755483474702,3.0,185.27,185.16,2.49]
[1755483474905,3.0,185.21,185.1,156.34]
[1755483475112,3.0,185.21,185.11,2.49]
[1755483475611,5.3967,185.19,185.13,5.3979]
[1755483475916,3.0,185.18,185.11,2.49]
[1755483477211,3.0,185.18,185.08,2.49]
[1755483477806,3.0,185.19,185.12,2.49]
[1755483478001,5.5682172,185.28,185.09,2.49]
[1755483478204,3.0,185.26,185.18,5.3965]
[1755483478403,3.0,185.24,185.18,5.3965]
[1755483478607,3.0,185.24,185.1,156.24]
[1755483478812,3.0,185.24,185.11,2.49]
[1755483479010,3.0,185.22,185.11,2.49]
[1755483479406,5.3963,185.2,185.15,5.3974]
[1755483479614,3.0,185.19,185.15,7.8874]
[1755483480210,3.0,185.19,185.16,7.8873]
[1755483480513,208.81294568,185.31,185.1,156.24]
[1755483480514,203.24472848,185.31,185.19,2.49]
[1755483480710,3.0,185.29,185.06,2.49]
[1755483480912,3.0,185.27,185.08,2.49]
[1755483481211,3.0,185.19,185.14,5.3977]
[1755483481518,3.0,185.2,185.16,2.49]
[1755483481708,3.0,185.19,185.16,2.49]
[1755483481909,208.81294568,185.31,185.16,2.49]
[1755483482220,3.0,185.18,185.16,2.49]
[1755483482713,3.0,185.3,185.16,2.49]
[1755483483018,3.0,185.24,185.12,156.16]
[1755483483216,3.0,185.24,185.13,2.49]
[1755483483714,8.3953,185.23,185.17,7.8868]
[1755483484019,3.0,185.3,185.15,2.49]
[1755483484209,5.3958,185.22,185.12,156.16]
[1755483484520,3.0,185.3,185.13,156.12]
[1755483484811,208.81294568,185.31,185.14,2.49]
[1755483484812,3.0,185.28,185.14,2.49]
[1755483485116,3.92557238,185.27,185.16,2.49]
[1755483485314,3.0,185.19,185.12,2.49]
[1755483485514,3.0,185.19,185.14,5.3979]
[1755483485814,3.0,185.19,185.06,2.49]
[1755483486016,5.3976,185.15,185.1,5.3988]
[1755483486221,3.0,185.14,185.1,7.8888]
[1755483486516,3.0,185.12,185.1,2.49]
[1755483486711,3.0,185.12,185.07,2.49]
[1755483486917,3.0,185.11,185.08,2.49]
[1755483487117,3.0,185.14,185.09,2.49]
[1755483487316,3.0,185.14,185.04,363.50007051]
[1755483487317,3.0,185.14,185.05,2.49]
[1755483487515,3.0,185.14,185.07,2.49]
[1755483487716,5.3984,185.13,185.07,2.49]
[1755483488723,3.0,185.14,185.09,5.3991]
[1755483488924,3.0,185.14,185.08,2.49]
[1755483489120,3.0,185.24,185.08,2.49]
[1755483489419,3.0,185.2,185.1,2.49]
[1755483489920,3.0,185.18,185.12,2.49]
[1755483490410,3.0,185.18,185.11,156.0]
[1755483490411,3.0,185.18,185.15,2.49]
[1755483491116,3.0,185.18,185.12,155.96]
[1755483491315,3.0,185.18,185.14,2.49]
[1755483491510,3.0,185.18,185.15,5.3975]
[1755483491709,3.0,185.2,185.13,2.49]
[1755483492709,3.0,185.2,185.16,5.397]
[1755483492922,3.0,185.2,185.17,2.49]
[1755483493319,3.0,185.2,185.18,2.49]
[1755483493619,5.5682172,185.3,185.18,2.49]
[1755483493815,3.0,185.28,185.18,7.8867]
[1755483494020,3.0,185.26,185.15,2.49]
[1755483494222,3.0,185.24,185.15,2.49]
[1755483494424,3.0,185.22,185.15,2.49]
[1755483494922,5.3958,185.22,185.16,5.3972]
[1755483495111,3.0,185.19,185.16,7.8872]
[1755483495311,3.0,185.21,185.16,5.3972]
[1755483495517,3.0,185.2,185.16,7.8872]
[1755483495917,3.0,185.19,185.16,7.8872]
[1755483496126,3.0,185.19,185.17,2.49]
[1755483497026,3.0,185.2,185.09,365.21]
[1755483497326,5.397,185.18,185.11,2.49]
[1755483497522,3.0,185.17,185.11,2.49]
[1755483497718,3.0,185.17,185.14,5.3976]
[1755483497920,2.87,185.16,185.14,5.3976]
[1755483498325,2.87,185.16,185.13,7.8781]
[1755483498530,2.87,185.26,185.1,2.48]
[1755483498830,2.87,185.24,185.11,5.3987]
[1755483499124,25.4911237,185.27,185.1,2.48]
[1755483499125,2.87,185.22,185.1,2.48]
[1755483499328,2.87,185.2,185.06,155.74]
[1755483499622,2.87,185.18,185.07,2.48]
[1755483499934,2.87,185.12,185.09,5.3991]
[1755483500229,2.87,185.11,185.09,5.3991]
[1755483500930,2.87,185.13,185.09,7.8791]
[1755483501232,2.87,185.12,185.09,2.48]
[1755483501729,2.87,185.12,185.09,5.3992]
[1755483502028,2.87,185.12,185.08,2.48]
[1755483502230,2.87,185.22,185.08,2.48]
[1755483502624,2.87,185.2,185.08,2.48]
[1755483502818,2.87,185.16,185.1,2.48]
[1755483503126,2.87,185.16,185.05,2.48]
[1755483503426,2.87,185.16,185.07,2.48]
[1755483504226,2.87,185.15,185.07,2.48]
[1755483504824,2.87,185.1,185.07,2.48]
[1755483505024,2.87,185.09,185.07,2.48]
[1755483505228,8.269,185.11,185.07,2.48]
[1755483505527,8.269,185.1,185.05,7.8804]
[1755483505722,2.87,185.09,185.06,2.48]
[1755483506030,36.2818237,185.23,185.07,5.3996]
[1755483506233,2.87,185.21,185.09,2.48]
[1755483506430,2.87,185.19,185.06,2.48]
[1755483506626,36.2818237,185.23,185.04,2.48]
[1755483506627,2.87,185.17,185.04,2.48]
[1755483506824,2.87,185.15,185.02,2.48]
[1755483507025,2.87,185.13,185.02,2.48]
[1755483507219,5.4002,185.07,185.02,7.8812]
[1755483507522,2.87,185.06,185.03,2.48]
[1755483507827,2.87,185.04,185.01,2.48]
[1755483508024,5.4006,185.05,185.0,365.22]
[1755483508226,9.3211237,185.15,185.0,368.1418]
[1755483508227,5.4005,185.06,185.0,368.1418]
[1755483508424,2.87,185.05,184.99,2.48]
[1755483508828,2.87,185.05,184.97,158.02]
[1755483509028,2.87,185.05,184.97,2.48]
[1755483509233,2.87,185.05,184.96,0.61641339]
[1755483509830,2.87,185.03,184.96,0.61641339]
[1755483510023,25.4911237,185.1,184.96,0.61641339]
[1755483510024,5.4028,184.98,184.96,0.61641339]
[1755483510230,2.87,184.97,184.96,0.61641339]
[1755483510433,25.4911237,185.06,184.78,9.3211237]
[1755483510434,2.87,184.96,184.78,9.3211237]
[1755483510631,2.87,184.96,184.83,2.97]
[1755483511231,2.87,184.95,184.8,2.97]
[1755483511534,2.87,184.94,184.8,2.97]
[1755483511736,9.3211237,185.01,184.87,5.4057]
[1755483511932,2.87,184.99,184.86,2.97]
[1755483512237,2.87,184.99,184.81,9.3211237]
[1755483512238,2.87,185.05,184.89,2.97]
[1755483512427,9.3211237,185.06,184.89,2.97]
[1755483512428,3.94178289,185.04,184.89,2.97]
[1755483512626,12.1911237,185.02,184.82,2.97]
[1755483512841,2.87,185.0,184.85,5.4063]
[1755483513040,3.94178289,184.99,184.84,2.97]
[1755483513235,2.87,184.97,184.87,5.4057]
[1755483513433,2.87,185.08,184.81,2.97]
[1755483513629,2.87,185.06,184.9,2.97]
[1755483513833,2.87,185.05,184.95,2.97]
[1755483514035,2.87,185.05,184.9,2.97]
[1755483514240,2.87,185.05,184.92,2.97]
[1755483514434,0.78000001,184.96,184.92,2.97]
[1755483514639,5.5682172,185.15,184.89,2.97]
[1755483514837,9.3211237,185.11,184.9,155.44]
[1755483515038,3.93281916,185.1,184.91,2.97]
[1755483515237,3.93281916,185.1,184.93,9.3211237]
[1755483515443,3.93281916,185.09,184.94,2.97]
[1755483515638,5.5682172,185.18,184.98,2.97]
[1755483515832,3.93633845,185.17,184.98,2.97]
[1755483516035,3.93633845,185.16,185.05,2.97]
[1755483516343,5.5682172,185.26,185.05,9.3211237]
[1755483516643,8.75289731,185.29,185.06,2.97]
[1755483516644,2.87,185.18,185.06,2.97]
[1755483517144,2.87,185.18,185.1,5.3988]
[1755483517335,2.87,185.18,185.11,155.44]
[1755483517545,2.87,185.28,185.12,2.97]
[1755483517741,3.93869311,185.27,185.12,2.97]
[1755483517931,2.87,185.25,185.12,2.97]
[1755483518137,2.87,185.23,185.12,2.97]
[1755483518448,2.87,185.18,185.12,2.97]
[1755483518744,8.2667,185.18,185.12,2.97]
[1755483518945,2.87,185.18,185.12,2.97]
[1755483519940,5.5682172,185.3,185.06,9.3211237]
[1755483519941,9.3211237,185.25,185.06,9.3211237]
[1755483520143,2.87,185.15,185.06,2.97]
[1755483520334,2.87,185.15,185.06,158.37]
[1755483520538,5.3985,185.12,185.06,158.37]
[1755483520735,8.2685,185.12,185.06,2.97]
[1755483520936,2.87,185.11,185.04,362.98]
[1755483521133,2.87,185.11,185.05,2.97]
[1755483521539,2.87,185.11,184.98,155.38]
[1755483521843,2.87,185.09,184.99,2.97]
[1755483522441,5.4004,185.06,184.99,2.97]
[1755483522644,2.87,185.07,184.99,2.97]
[1755483522841,2.87,185.16,184.99,2.97]
[1755483523034,2.87,185.14,185.03,5.4008]
[1755483523234,2.87,185.14,185.04,2.97]
[1755483523638,5.399,185.11,185.04,2.97]
[1755483523940,2.87,185.19,185.04,2.97]
[1755483524145,2.87,185.19,185.05,5.4005]
[1755483524344,2.87,185.19,185.07,2.97]
[1755483524641,3.93576042,185.18,185.07,2.97]
[1755483524946,2.87,185.23,185.07,2.97]
[1755483525151,0.940134,185.26,185.07,2.97]
[1755483525152,2.87,185.21,185.07,2.97]
[1755483525445,2.87,185.19,185.08,155.36]
[1755483525637,2.87,185.19,185.09,2.97]
[1755483525844,2.87,185.25,185.09,155.36]
[1755483526034,2.87,185.23,185.1,2.97]
[1755483526240,2.87,185.21,185.1,2.97]
[1755483526441,2.87,185.19,185.1,2.97]
[1755483526635,2.87,185.19,185.08,2.97]
[1755483527036,16.17,185.24,184.98,2.97]
[1755483527236,19.04,185.22,184.98,2.97]
[1755483527442,5.3993,185.1,185.03,5.401]
[1755483527643,2.87,185.11,185.04,2.97]
[1755483528245,16.17,185.22,184.99,155.34]
[1755483528246,5.3993,185.09,185.02,5.4013]
[1755483528443,5.3993,185.09,185.05,2.85]
[1755483528750,5.3993,185.09,184.99,155.34]
[1755483528751,16.17,185.21,185.06,2.85]
[1755483529051,16.17,185.21,185.02,2.85]
[1755483529052,2.84,185.19,185.02,2.85]
[1755483529247,2.84,185.17,185.02,2.85]
[1755483529442,5.399,185.11,185.03,5.4009]
[1755483529649,2.84,185.12,185.04,2.85]
[1755483530145,5.3993,185.1,185.04,2.85]
[1755483530645,15.28479159,185.24,185.01,155.32]
[1755483530646,2.84,185.08,185.01,155.32]
[1755483530951,2.84,185.08,185.02,2.85]
[1755483531255,2.84,185.17,185.03,2.85]
[1755483531445,2.84,185.15,185.03,2.85]
[1755483531748,5.3992,185.1,185.03,2.85]
[1755483532547,5.3994,185.09,185.03,2.85]
[1755483533150,5.3991,185.1,185.03,2.85]
[1755483533353,2.84,185.13,185.03,2.85]
[1755483534255,16.17,185.23,185.03,5.4008]
[1755483534448,2.84,185.11,185.04,2.85]
[1755483535353,5.3982,185.13,185.06,2.85]
[1755483535657,2.84,185.17,185.06,2.85]
[1755483535951,2.84,185.17,185.01,155.32]
[1755483535952,5.3975,185.16,185.09,2.85]
[1755483536255,2.84,185.17,185.09,2.85]
[1755483536748,2.84,185.2,185.09,2.85]
[1755483536954,8.2362,185.2,185.12,5.3982]
[1755483537150,2.84,185.2,185.13,2.85]
[1755483537551,2.84,185.13,185.07,158.13]
[1755483537749,16.17,185.26,185.08,2.85]
[1755483537950,2.84,185.24,185.08,2.85]
[1755483538145,5.3978,185.15,185.09,2.85]
[1755483538352,2.84,185.22,185.09,2.85]
[1755483538757,2.84,185.22,185.11,2.85]
[1755483539151,2.84,185.22,185.12,155.24]
[1755483539354,2.84,185.22,185.13,2.85]
[1755483539659,2.84,185.22,185.15,2.85]
[1755483539846,2.84,185.22,185.16,5.3973]
[1755483540051,203.24472848,185.31,185.16,5.3973]
[1755483540052,2.84,185.2,185.16,2.85]
[1755483540349,2.84,185.25,185.19,2.85]
[1755483540556,2.84,185.3,185.19,2.85]
[1755483540850,2.84,185.28,185.19,8.2464]
[1755483541052,2.84,185.28,185.19,2.85]
[1755483541351,5.3949,185.25,185.19,2.85]
[1755483541553,203.24472848,185.31,185.19,2.85]
[1755483541754,2.84,185.24,185.21,2.85]
[1755483541946,2.84,185.25,185.17,2.85]
[1755483542147,2.84,185.28,185.17,2.85]
[1755483542347,2.84,185.28,185.18,2.85]
[1755483542548,2.84,185.31,185.24,2.85]
[1755483542948,2.84,185.31,185.26,5.3944]
[1755483543154,2.84,185.31,185.21,9.30500948]
[1755483543155,2.84,185.42,185.28,2.85]
[1755483543350,2.84,185.4,185.28,2.85]
[1755483543655,2.84,185.38,185.15,362.82]
[1755483543863,3.88482042,185.37,185.17,2.85]
[1755483544064,8.2335,185.29,185.18,155.14]
[1755483544361,8.2335,185.29,185.16,372.04500948]
[1755483544362,8.2335,185.29,185.19,155.14]
[1755483544551,6.50752648,185.43,185.2,2.85]
[1755483544552,2.84,185.28,185.2,2.85]
[1755483544754,9.30500948,185.35,185.14,362.74]
[1755483544954,2.84,185.3,185.15,2.85]
[1755483545161,5.3952,185.24,185.16,5.3971]
[1755483545360,2.84,185.26,185.17,2.85]
[1755483545864,2.84,185.29,185.17,2.85]
[1755483546155,2.84,185.29,185.2,5.396]
[1755483546356,2.84,185.29,185.17,2.85]
[1755483547066,16.17,185.42,185.2,2.85]
[1755483547067,2.84,185.33,185.2,2.85]
[1755483547657,2.84,185.36,185.24,2.85]
[1755483547857,2.84,185.36,185.26,2.85]
[1755483548065,2.84,185.41,185.36,2.85]
[1755483548257,2.84,185.5,185.28,2.85]
[1755483548458,3.87043978,185.49,185.28,2.85]
[1755483548659,2.84,185.41,185.34,2.85]
[1755483549364,2.84,185.46,185.3,2.85]
[1755483549568,3.86688004,185.45,185.3,2.85]
[1755483549765,6.70702463,185.44,185.3,2.85]
[1755483550063,2.84,185.43,185.23,9.30500948]
[1755483550268,6.70454126,185.42,185.27,2.85]
[1755483550466,3.8643708,185.41,185.27,2.85]
[1755483550769,8.2332,185.3,185.27,2.85]
[1755483550961,2.84,185.3,185.27,2.85]
[1755483551162,5.3935,185.3,185.24,2.85]
[1755483551363,2.84,185.31,185.24,2.85]
[1755483552170,5.3937,185.29,185.24,2.85]
[1755483552366,2.84,185.31,185.25,2.85]
[1755483553069,2.84,185.31,185.15,362.58]
[1755483553070,2.84,185.29,185.26,2.85]
[1755483553270,16.17,185.44,185.2,154.98]
[1755483553463,20.8138115,185.45,185.28,2.85]
[1755483553464,2.84,185.39,185.28,2.85]
[1755483554466,5.3901,185.41,185.33,5.3921]
[1755483554771,2.84,185.42,185.34,2.85]
[1755483555165,2.84,185.42,185.29,154.96]
[1755483555166,2.84,185.42,185.37,2.85]
[1755483555382,0.93881515,185.51,185.39,2.85]
[1755483555568,2.84,185.5,185.39,2.85]
[1755483556180,2.84,185.5,185.43,2.85]
[1755483556869,5.3877,185.49,185.43,2.85]
[1755483557077,2.84,185.5,185.43,2.85]
[1755483557972,2.84,185.5,185.37,154.9]
[1755483558176,3.02,185.53,185.38,2.85]
[1755483558574,8.4083,185.47,185.41,2.85]
[1755483558969,3.02,185.47,185.41,2.85]
[1755483559278,3.02,185.44,185.38,2.85]
[1755483560480,3.02,185.51,185.29,2.85]
[1755483560672,3.02,185.49,185.29,2.85]
[1755483560876,5.3894,185.44,185.29,2.85]
[1755483561074,3.02,185.45,185.29,2.85]
[1755483561575,8.4091,185.45,185.38,2.85]
[1755483561772,3.02,185.51,185.29,2.85]
[1755483562074,3.02,185.49,185.29,2.85]
[1755483562276,3.02,185.47,185.29,2.85]
[1755483562472,3.02,185.41,185.35,2.85]
[1755483562775,16.17,185.54,185.35,2.85]
[1755483562966,3.02,185.42,185.35,2.85]
[1755483563367,3.02,185.45,185.35,2.85]
[1755483563972,5.3892,185.44,185.37,5.3912]
[1755483564169,16.17,185.57,185.38,2.85]
[1755483564372,3.02,185.48,185.38,2.85]
[1755483564571,5.3883,185.47,185.4,5.3903]
[1755483564769,5.3883,185.47,185.41,2.85]
[1755483564974,3.02,185.45,185.42,2.85]
[1755483565174,3.02,185.58,185.32,2.85]
[1755483565475,3.02,185.62,185.4,2.85]
[1755483565674,3.02,185.6,185.4,2.85]
[1755483565974,3.02,185.58,185.4,2.85]
[1755483566175,5.3872,185.51,185.44,5.389]
[1755483566371,8.4072,185.51,185.45,2.85]
[1755483566770,3.02,185.62,185.35,2.85]
[1755483566968,3.02,185.58,185.36,2.85]
[1755483567171,3.02,185.56,185.36,2.85]
[1755483567366,3.02,185.56,185.46,2.85]
[1755483567871,3.02,185.6,185.36,2.85]
[1755483568074,3.02,185.58,185.36,2.85]
[1755483568272,3.02,185.56,185.36,2.85]
[1755483568477,3.02,185.54,185.36,2.85]
[1755483568867,3.02,185.54,185.34,15.2455943]
[1755483569072,3.02,185.54,185.35,2.85]
[1755483569373,3.02,185.52,185.35,2.85]
[1755483569565,3.02,185.52,185.4,2.85]
[1755483569769,3.02,185.52,185.29,15.2455943]